bitfinex/quotes_SOLUSD_20240809
["timestamp","ask_amount","ask_price","bid_price","bid_amount"]
[1723237143660,6.5156,153.48,153.44,1.30321526]
[1723237144164,6.5151,153.49,153.44,7.82031526]
[1723237144533,6.5151,153.49,153.45,15.0885]
[1723237144749,6.5151,153.49,153.45,22.55944138]
[1723237144967,6.5147,153.5,153.46,1.3030606]
[1723237145135,6.5139,153.52,153.46,1.3030606]
[1723237145335,6.5135,153.53,153.48,6.5154]
[1723237145547,6.5135,153.53,153.49,1.3028019]
[1723237146141,28.58,153.56,153.49,1.3028019]
[1723237146436,6.5133,153.53,153.49,7.8178019]
[1723237146638,6.5133,153.53,153.5,1.30273001]
[1723237146868,6.5138,153.52,153.47,6.5158]
[1723237147037,6.5143,153.51,153.46,6.5162]
[1723237147659,6.5138,153.52,153.47,6.5157]
[1723237147967,28.58,153.54,153.45,21.2563]
[1723237148149,28.58,153.54,153.46,45.0]
[1723237148331,6.515,153.49,153.45,21.2563]
[1723237148535,6.5144,153.51,153.45,21.2563]
[1723237148748,6.5144,153.51,153.46,6.516]
[1723237148948,6.5138,153.52,153.45,21.2563]
[1723237149153,6.5142,153.51,153.46,6.5162]
[1723237149565,6.5138,153.52,153.47,6.5159]
[1723237150160,6.5134,153.53,153.48,6.5154]
[1723237150370,6.513,153.54,153.49,1.30280353]
[1723237150677,6.5133,153.53,153.48,6.5154]
[1723237150844,6.5138,153.52,153.45,21.38179]
[1723237151042,6.515,153.5,153.45,21.2563]
[1723237151238,6.5142,153.51,153.46,6.5163]
[1723237151461,35.0938,153.52,153.47,6.5157]
[1723237151670,6.5138,153.52,153.47,6.5157]
[1723237152168,6.5138,153.52,153.48,6.5155]
[1723237152368,35.0933,153.54,153.48,6.5155]
[1723237152867,28.58,153.54,153.47,6.5158]
[1723237153075,6.5142,153.52,153.48,6.5154]
[1723237153756,28.58,153.5,153.45,21.2563]
[1723237154137,35.0949,153.5,153.45,27.7727]
[1723237155856,6.5145,153.51,153.46,6.5162]
[1723237156042,8.09294562,153.5,153.45,27.7729]
[1723237156243,6.5147,153.5,153.45,27.7729]
[1723237157069,6.5143,153.51,153.45,21.2563]
[1723237157270,35.0938,153.52,153.47,6.5159]
[1723237158773,35.0931,153.54,153.49,6.5149]
[1723237158943,35.0931,153.54,153.49,7.81775312]
[1723237159140,35.0931,153.54,153.49,6.5149]
[1723237160259,6.5125,153.55,153.5,6.5146]
[1723237160670,6.5129,153.54,153.5,6.5146]
[1723237160878,6.5134,153.53,153.49,6.515]
[1723237161169,6.5143,153.51,153.46,6.5163]
[1723237161386,6.5143,153.51,153.47,6.5158]
[1723237161875,6.5138,153.52,153.47,6.5158]
[1723237162673,35.093,153.54,153.45,22.55924006]
[1723237162847,35.093,153.54,153.45,22.55910805]
[1723237163578,6.513,153.54,153.49,6.5149]
[1723237164273,6.5135,153.53,153.48,6.5153]
[1723237165671,6.513,153.54,153.49,6.515]
[1723237166672,28.58,153.56,153.49,6.515]
[1723237166876,1.57824562,153.55,153.48,6.5153]
[1723237167075,6.5138,153.52,153.47,6.5158]
[1723237167378,6.5138,153.52,153.48,6.5154]
[1723237168076,6.5134,153.53,153.48,6.5154]
[1723237168371,6.5139,153.52,153.48,6.5154]
[1723237168581,6.5139,153.52,153.47,6.5158]
[1723237169464,6.5139,153.52,153.48,6.5154]
[1723237170168,26.0934,153.53,153.48,6.5154]
[1723237170374,19.58,153.54,153.49,7.81743563]
[1723237170577,26.0929,153.54,153.5,6.5146]
[1723237171278,26.0929,153.54,153.49,1.30283563]
[1723237171279,0.12549,153.56,153.49,1.30283563]
[1723237171461,19.58,153.55,153.51,6.514]
[1723237171662,26.0926,153.55,153.51,6.514]
[1723237171967,26.0926,153.55,153.5,6.5145]
[1723237172364,28.72704811,153.58,153.53,6.5132]
[1723237172567,6.513,153.54,153.51,21.0919]
[1723237172765,6.5138,153.52,153.47,27.6077]
[1723237173081,6.5143,153.51,153.47,21.0919]
[1723237173980,1.57824562,153.51,153.47,21.0919]
[1723237174160,6.5155,153.48,153.43,21.5203]
[1723237174579,6.5155,153.48,153.44,6.5171]
[1723237174773,8.09334562,153.49,153.44,6.5171]
[1723237174973,8.09334562,153.49,153.45,6.5167]
[1723237175277,35.0731,153.54,153.49,6.515]
[1723237175466,0.12549,153.53,153.49,6.515]
[1723237175667,35.073,153.54,153.49,6.515]
[1723237175855,28.56,153.54,153.47,6.5155]
[1723237176056,6.5149,153.5,153.45,6.5166]
[1723237176281,6.5142,153.51,153.46,6.5161]
[1723237176479,28.56,153.52,153.43,44.86600292]
[1723237176480,35.0739,153.52,153.43,44.86600292]
[1723237176685,35.0739,153.52,153.47,6.5158]
[1723237176979,6.5142,153.51,153.47,6.5158]
[1723237177178,6.5142,153.51,153.46,6.5162]
[1723237177383,35.0738,153.52,153.47,6.5158]
[1723237178679,6.5142,153.51,153.47,6.5158]
[1723237178899,28.56,153.52,153.43,43.5629]
[1723237178900,6.5146,153.5,153.43,43.5629]
[1723237179057,6.5146,153.5,153.43,15.0029]
[1723237179254,28.56,153.52,153.43,15.0029]
[1723237179481,6.5142,153.51,153.43,15.0029]
[1723237180066,6.5142,153.51,153.47,6.5159]
[1723237180273,35.0738,153.52,153.47,6.5159]
[1723237180988,6.5143,153.51,153.46,6.5162]
[1723237181190,28.56,153.52,153.47,6.5159]
[1723237181488,35.0739,153.52,153.47,6.5159]
[1723237182863,6.63899,153.53,153.48,6.5154]
[1723237183185,23.96901471,153.58,153.49,1.30293888]
[1723237183186,28.56,153.56,153.49,1.30293888]
[1723237183375,28.56,153.56,153.46,1.30280458]
[1723237183689,28.56,153.56,153.46,46.30280458]
[1723237183875,6.5128,153.55,153.5,6.5146]
[1723237184262,6.5129,153.54,153.49,6.5149]
[1723237184463,7.64401471,153.58,153.53,6.5133]
[1723237184671,31.19554811,153.6,153.53,6.513]
[1723237185069,28.56,153.6,153.53,6.513]
[1723237185385,6.5113,153.58,153.52,6.5134]
[1723237185692,28.56,153.6,153.52,6.5134]
[1723237187275,6.5118,153.57,153.52,6.5134]
[1723237188091,6.5124,153.56,153.51,6.5141]
[1723237189692,6.5124,153.56,153.49,28.56]
[1723237189693,6.5117,153.57,153.52,6.5136]
[1723237190003,28.56,153.6,153.49,28.56]
[1723237190215,28.56,153.6,153.51,28.56]
[1723237190216,35.0707,153.6,153.51,28.56]
[1723237190392,6.5107,153.6,153.52,1.30237863]
[1723237190783,6.5107,153.6,153.55,6.5121]
[1723237191701,28.68549,153.6,153.51,28.56]
[1723237192012,0.25098,153.59,153.51,28.56]
[1723237192175,1.70373562,153.58,153.49,28.56]
[1723237192375,30.26373562,153.58,153.48,15.2808]
[1723237192576,6.5126,153.55,153.48,15.2808]
[1723237192785,6.5121,153.56,153.51,6.514]
[1723237193504,6.5117,153.57,153.52,6.5136]
[1723237193812,21.14824562,153.56,153.52,6.5136]
[1723237195701,1.57824562,153.56,153.52,6.5136]
[1723237195896,36.63034562,153.56,153.48,15.2808]
[1723237196103,36.63034562,153.56,153.51,6.5138]
[1723237196803,30.11824562,153.56,153.52,6.5136]
[1723237198512,6.5126,153.55,153.48,15.2808]
[1723237198680,8.09114562,153.54,153.48,15.2808]
[1723237198885,1.57824562,153.54,153.5,6.5145]
[1723237199911,1.57824562,153.54,153.49,6.515]
[1723237199912,8.09124562,153.54,153.49,6.515]
[1723237200113,6.5138,153.52,153.48,15.2808]
[1723237200315,8.09264562,153.51,153.46,6.516]
[1723237201116,1.57824562,153.51,153.47,6.5158]
[1723237201602,8.09254562,153.51,153.47,6.5158]
[1723237201785,1.57824562,153.51,153.48,6.5154]
[1723237201987,28.54,153.52,153.44,15.0548]
[1723237202192,37.68419915,153.56,153.51,6.5141]
[1723237202402,0.12549,153.55,153.51,6.5141]
[1723237202889,6.63799,153.55,153.51,6.5141]
[1723237203213,6.63799,153.55,153.5,6.5146]
[1723237203397,0.12549,153.51,153.44,15.0548]
[1723237203598,28.54,153.5,153.46,6.5163]
[1723237204105,28.54,153.5,153.44,15.0548]
[1723237204106,28.54,153.52,153.44,15.0548]
[1723237204426,35.0539,153.52,153.47,6.5158]
[1723237204601,8.09264562,153.51,153.46,6.5162]
[1723237205191,8.09264562,153.51,153.44,15.0548]
[1723237205192,6.5147,153.5,153.45,6.5166]
[1723237205403,1.57824562,153.49,153.45,6.5166]
[1723237205711,1.57824562,153.49,153.46,6.5162]
[1723237206738,35.0552,153.49,153.44,6.517]
[1723237207026,44.71598,153.52,153.42,6.518]
[1723237207027,35.056,153.47,153.42,6.518]
[1723237207228,35.056,153.47,153.4,15.0548]
[1723237207229,1.57824562,153.46,153.43,6.5176]
[1723237207396,28.54,153.47,153.43,6.5176]
[1723237207596,0.25098,153.48,153.44,6.5171]
[1723237207832,6.5164,153.46,153.4,15.0548]
[1723237208009,1.57824562,153.45,153.4,15.0548]
[1723237208334,8.09514562,153.45,153.4,15.0548]
[1723237208619,0.12549,153.46,153.42,6.518]
[1723237209026,0.25098,153.46,153.42,6.518]
[1723237211129,6.76728,153.46,153.42,6.518]
[1723237211504,6.76728,153.46,153.41,6.5183]
[1723237211700,28.54,153.49,153.4,15.0548]
[1723237211900,0.12549,153.5,153.46,6.5163]
[1723237212125,28.54,153.54,153.44,28.54]
[1723237212300,6.5134,153.53,153.48,6.5154]
[1723237212500,28.54,153.54,153.44,28.54]
[1723237212814,6.5155,153.48,153.43,6.5175]
[1723237213016,28.54,153.52,153.45,6.5164]
[1723237213225,6.5144,153.51,153.42,28.54]
[1723237213425,6.5144,153.51,153.46,6.5163]
[1723237214023,6.5146,153.5,153.45,6.5166]
[1723237214322,6.5146,153.5,153.46,6.5163]
[1723237214738,28.54,153.54,153.45,6.4134]
[1723237214899,44.465,153.56,153.46,44.89782359]
[1723237215098,35.0513,153.58,153.54,6.5129]
[1723237215305,1.13389034,153.58,153.54,6.5129]
[1723237215510,44.465,153.6,153.48,28.54]
[1723237215716,28.54,153.58,153.48,28.54]
[1723237216339,6.5117,153.57,153.52,6.5137]
[1723237216505,63.45385777,153.6,153.48,28.54]
[1723237216701,0.12549,153.57,153.48,28.54]
[1723237216938,0.37647,153.57,153.48,28.54]
[1723237217105,6.5126,153.55,153.5,6.5143]
[1723237217306,8.21663562,153.54,153.5,6.5143]
[1723237217521,28.54,153.56,153.51,6.514]
[1723237218333,35.0522,153.56,153.51,6.514]
[1723237218633,0.37647,153.57,153.53,6.5132]
[1723237218803,6.88817,153.57,153.53,6.5132]
[1723237219533,6.76268,153.57,153.53,6.5132]
[1723237220232,0.25098,153.57,153.53,6.5132]
[1723237221541,6.5113,153.58,153.53,6.5132]
[1723237221832,6.5118,153.57,153.52,6.5137]
[1723237222430,0.12549,153.58,153.48,28.54]
[1723237222617,0.37647,153.58,153.48,28.54]
[1723237222822,6.5117,153.57,153.52,6.5134]
[1723237223220,6.5124,153.56,153.5,6.5143]
[1723237223418,8.09084562,153.55,153.5,6.5143]
[1723237223618,6.5129,153.54,153.5,6.5143]
[1723237225318,8.09084562,153.55,153.5,6.5143]
[1723237226344,28.66549,153.54,153.46,15.0548]
[1723237226649,0.12549,153.51,153.42,15.4254]
[1723237226818,1.95471562,153.51,153.46,6.5162]
[1723237227017,28.66549,153.54,153.45,28.54]
[1723237227843,6.5137,153.53,153.48,6.5154]
[1723237228927,0.12549,153.51,153.43,28.54]
[1723237229128,1.82922562,153.51,153.43,28.54]
[1723237229325,28.66549,153.52,153.43,28.54]
[1723237229527,0.25098,153.51,153.47,6.5157]
[1723237229727,6.76528,153.51,153.47,6.5157]
[1723237230044,0.12549,153.51,153.47,6.5157]
[1723237230227,6.5148,153.5,153.43,28.54]
[1723237230432,1.70373562,153.49,153.42,15.4254]
[1723237230628,28.79098,153.48,153.38,15.4254]
[1723237230954,6.5167,153.46,153.41,6.5181]
[1723237231243,1.57824562,153.45,153.4,6.5188]
[1723237231435,8.09504562,153.45,153.4,6.5188]
[1723237232215,35.0573,153.44,153.39,6.5192]
[1723237232419,8.09584562,153.43,153.37,12.644]
[1723237232644,1.57824562,153.42,153.36,0.3419388]
[1723237233144,0.12549,153.47,153.43,6.5173]
[1723237233452,0.37647,153.47,153.43,6.5173]
[1723237234044,6.89247,153.47,153.42,6.5179]
[1723237234434,6.5165,153.46,153.41,6.5184]
[1723237234831,0.37647,153.47,153.42,6.5179]
[1723237235027,6.5164,153.46,153.41,6.5184]
[1723237235228,28.66549,153.44,153.36,0.3419388]
[1723237235433,1.70373562,153.43,153.36,0.3419388]
[1723237235630,6.5182,153.42,153.36,0.3419388]
[1723237235829,6.64319,153.43,153.38,6.5197]
[1723237236044,6.64319,153.43,153.39,6.5192]
[1723237236242,0.12549,153.43,153.39,6.5192]
[1723237236453,0.25098,153.43,153.39,6.5192]
[1723237237246,6.76858,153.43,153.39,6.5192]
[1723237238125,1.57824562,153.42,153.38,6.5197]
[1723237238340,0.12549,153.39,153.36,0.3419388]
[1723237238646,0.37647,153.39,153.36,0.3419388]
[1723237240534,35.059,153.4,153.36,0.3419388]
[1723237240844,6.77028,153.39,153.36,0.3419388]
[1723237241034,6.77028,153.39,153.36,6.8624388]
[1723237241035,0.25098,153.39,153.36,6.8624388]
[1723237241236,35.0589,153.4,153.36,0.3419388]
[1723237242136,0.50196,153.39,153.36,0.3419388]
[1723237242537,6.52,153.38,153.36,0.3419388]
[1723237242727,6.64559,153.37,153.36,0.3419388]
[1723237242928,6.89657,153.37,153.36,0.3419388]
[1723237243540,30.11824562,153.38,153.36,0.3419388]
[1723237243857,6.5196,153.39,153.36,0.3419388]
[1723237247357,6.5198,153.38,153.36,0.3419388]
[1723237247851,8.47481562,153.37,153.36,0.3419388]
[1723237248058,8.60030562,153.37,153.36,0.3419388]
[1723237249032,53.60030562,153.37,153.36,0.3419388]
[1723237249963,73.60030562,153.37,153.36,0.3419388]
[1723237250257,6.523,153.31,153.26,6.5245]
[1723237250453,1.57824562,153.3,153.26,6.5245]
[1723237250957,6.64809,153.32,153.24,1.30485371]
[1723237251147,6.5232,153.3,153.26,6.5248]
[1723237251348,6.5228,153.31,153.26,6.5248]
[1723237252257,35.18779,153.32,153.27,6.5243]
[1723237252458,0.12549,153.31,153.27,6.5243]
[1723237252834,6.64829,153.31,153.23,44.7224]
[1723237253045,6.5228,153.31,153.23,44.7224]
[1723237253263,6.5223,153.32,153.23,44.7224]
[1723237253444,6.64739,153.33,153.28,6.5239]
[1723237255247,6.5225,153.32,153.27,6.5244]
[1723237255447,6.5225,153.32,153.28,6.5239]
[1723237255656,6.5225,153.32,153.27,6.5244]
[1723237255967,6.5219,153.33,153.25,28.54]
[1723237256265,6.5206,153.36,153.31,6.5226]
[1723237257167,28.54,153.38,153.3,6.523]
[1723237257669,6.5211,153.35,153.31,1.30446921]
[1723237258049,6.5211,153.35,153.3,6.523]
[1723237258362,6.5215,153.34,153.3,6.523]
[1723237258569,28.54,153.38,153.31,1.30443409]
[1723237258865,6.5206,153.36,153.31,6.5226]
[1723237259068,28.54,153.38,153.3,6.523]
[1723237259445,6.5211,153.35,153.31,6.5226]
[1723237259656,6.5211,153.35,153.31,7.8269901]
[1723237260069,6.5207,153.36,153.31,7.8269901]
[1723237260273,6.5202,153.37,153.32,6.5222]
[1723237260473,6.5197,153.38,153.34,6.5214]
[1723237260774,6.5197,153.38,153.33,7.82596393]
[1723237261556,6.5197,153.38,153.34,1.30412291]
[1723237261874,6.5192,153.4,153.35,7.82498491]
[1723237262054,6.5193,153.39,153.35,6.5209]
[1723237262253,28.54,153.4,153.29,16.5802]
[1723237262452,28.54,153.36,153.29,16.5802]
[1723237262655,6.5227,153.31,153.29,16.5802]
[1723237262972,6.5224,153.32,153.29,16.5802]
[1723237263474,6.5224,153.32,153.27,6.5243]
[1723237264158,6.5228,153.31,153.27,6.5243]
[1723237265056,6.5228,153.31,153.26,6.5247]
[1723237265657,6.5223,153.32,153.27,6.5243]
[1723237266765,8.10104562,153.31,153.27,6.5243]
[1723237267472,8.10104562,153.31,153.26,6.5247]
[1723237267778,6.5223,153.32,153.27,6.5243]
[1723237267983,8.10124562,153.31,153.26,6.5248]
[1723237268586,8.10124562,153.31,153.26,6.0248]
[1723237268960,8.10124562,153.31,153.27,6.5243]
[1723237269157,1.57824562,153.31,153.27,6.5243]
[1723237269360,35.0623,153.32,153.27,6.5243]
[1723237269782,1.57824562,153.31,153.24,22.9236]
[1723237270783,28.54,153.3,153.24,22.9236]
[1723237270991,1.57824562,153.29,153.24,16.5802]
[1723237272084,8.10184562,153.29,153.25,6.5251]
[1723237272687,1.57824562,153.29,153.25,6.5251]
[1723237274277,1.57824562,153.29,153.26,6.5247]
[1723237274478,0.25098,153.33,153.25,1.3049702]
[1723237274685,6.77308,153.33,153.28,6.5238]
[1723237274884,6.5229,153.31,153.26,6.5244]
[1723237275197,8.10144562,153.3,153.25,6.5251]
[1723237276900,8.10144562,153.3,153.26,6.5247]
[1723237277076,6.89927,153.31,153.26,6.5247]
[1723237277405,28.54,153.32,153.28,6.5239]
[1723237278077,35.0623,153.32,153.28,6.5239]
[1723237278696,35.0623,153.32,153.27,6.5243]
[1723237278877,6.5228,153.31,153.27,6.5243]
[1723237280400,22.8434,153.36,153.28,1.30480092]
[1723237280590,6.521,153.35,153.3,6.5228]
[1723237280797,6.521,153.35,153.28,1.30449215]
[1723237281101,6.521,153.35,153.3,6.5228]
[1723237281481,6.5215,153.34,153.3,6.5228]
[1723237281883,6.5215,153.34,153.27,28.54]
[1723237283290,6.5211,153.35,153.3,6.523]
[1723237284714,6.5215,153.34,153.29,6.5235]
[1723237286310,6.5219,153.33,153.29,6.5235]
[1723237286806,6.5224,153.32,153.28,6.5239]
[1723237287105,6.522,153.33,153.28,7.82851035]
[1723237287281,6.5215,153.34,153.29,6.5232]
[1723237287481,6.5211,153.35,153.3,7.82755552]
[1723237288498,6.5214,153.34,153.3,7.82755552]
[1723237288700,6.5214,153.34,153.3,1.30445552]
[1723237288883,6.5214,153.34,153.3,1.30441226]
[1723237289401,6.5219,153.33,153.28,6.5238]
[1723237289986,6.5219,153.33,153.29,7.82795757]
[1723237293809,6.5215,153.34,153.29,6.5235]
[1723237294605,6.522,153.33,153.29,6.5235]
[1723237294800,6.522,153.33,153.3,1.3044573]
[1723237296794,6.522,153.33,153.27,28.54]
[1723237296999,6.522,153.33,153.28,6.5239]
[1723237301114,1.57824562,153.32,153.25,35.1587]
[1723237301320,1.57824562,153.32,153.25,6.6187]
[1723237301839,21.20824562,153.32,153.25,26.2487]
[1723237302027,6.523,153.31,153.26,6.5245]
[1723237302337,6.5236,153.29,153.25,13.1438]
[1723237302500,19.63,153.3,153.25,6.6187]
[1723237303709,6.5228,153.31,153.26,6.5245]
[1723237304030,8.10104562,153.31,153.26,6.5245]
[1723237304246,8.10104562,153.31,153.27,6.5244]
[1723237306912,1.57824562,153.31,153.27,6.5244]
[1723237307813,1.57824562,153.31,153.28,6.5239]
[1723237308305,1.57824562,153.31,153.27,6.5243]
[1723237308904,28.76549,153.3,153.21,6.9451388]
[1723237309210,1.57824562,153.29,153.21,6.9451388]
[1723237309410,28.64,153.3,153.21,6.9451388]
[1723237309739,0.25098,153.31,153.22,28.64]
[1723237310923,6.4955,153.34,153.31,6.5226]
[1723237311125,28.64,153.36,153.31,6.5224]
[1723237311322,16.1788,153.37,153.31,6.5224]
[1723237311714,31.21754913,153.38,153.31,6.5224]
[1723237311913,6.5211,153.35,153.31,6.5224]
[1723237312316,6.5211,153.35,153.3,6.523]
[1723237312519,6.5219,153.33,153.29,6.5235]
[1723237312725,0.12549,153.33,153.27,22.086]
[1723237313030,6.5224,153.32,153.27,28.6101]
[1723237313237,6.5224,153.32,153.28,6.5239]
[1723237313422,8.10094562,153.31,153.27,28.6104]
[1723237313634,8.10094562,153.31,153.27,22.5072]
[1723237314624,6.5231,153.3,153.26,6.5247]
[1723237314834,6.5252,153.26,153.23,16.2114]
[1723237315132,8.10274562,153.27,153.23,16.2114]
[1723237315330,35.41498,153.28,153.23,22.7375]
[1723237315530,6.524,153.28,153.23,22.7375]
[1723237316611,0.37647,153.29,153.23,22.7375]
[1723237316612,6.5244,153.27,153.23,22.7375]
[1723237316828,6.5244,153.27,153.23,6.5261]
[1723237317023,1.57824562,153.26,153.21,0.8419388]
[1723237317321,0.37647,153.29,153.23,6.5257]
[1723237317826,1.95471562,153.29,153.23,6.5257]
[1723237318030,45.37647,153.29,153.23,6.5257]
[1723237318229,6.5243,153.28,153.23,6.5257]
[1723237318843,6.5244,153.27,153.22,6.5264]
[1723237319139,1.57824562,153.26,153.22,6.5264]
[1723237320443,6.5265,153.22,153.21,0.8419388]
[1723237320739,0.25098,153.25,153.21,0.8419388]
[1723237320947,0.12549,153.25,153.22,6.5263]
[1723237321154,2.58495082,153.29,153.21,0.8419388]
[1723237321329,16.74822894,153.31,153.26,6.5245]
[1723237321516,6.5228,153.31,153.26,6.5245]
[1723237321716,28.64,153.32,153.27,6.5243]
[1723237321717,6.5223,153.32,153.27,6.5243]
[1723237321940,38.86309684,153.34,153.27,6.5243]
[1723237321941,6.5228,153.31,153.27,6.5243]
[1723237322123,6.5224,153.32,153.27,6.5243]
[1723237323342,6.5224,153.32,153.28,6.5239]
[1723237323735,6.5224,153.32,153.27,7.82904934]
[1723237324231,6.5224,153.32,153.28,6.5239]
[1723237324725,6.5221,153.33,153.28,6.5239]
[1723237325124,6.5223,153.32,153.28,6.5239]
[1723237325640,6.5227,153.31,153.25,23.1438]
[1723237325937,28.64,153.34,153.25,23.1438]
[1723237325938,6.5233,153.3,153.25,23.1442]
[1723237327333,6.5227,153.31,153.26,6.5248]
[1723237327645,6.5227,153.31,153.27,6.5243]
[1723237327815,6.5224,153.32,153.27,6.5243]
[1723237329845,6.5228,153.31,153.27,6.5243]
[1723237330443,6.5232,153.3,153.25,23.1439]
[1723237330744,6.5236,153.29,153.25,16.619]
[1723237331218,28.64,153.32,153.27,6.5243]
[1723237331219,6.5226,153.32,153.27,6.5243]
[1723237332644,6.5227,153.31,153.27,6.5243]
[1723237332958,6.5241,153.28,153.25,16.619]
[1723237333544,6.5246,153.27,153.25,16.619]
[1723237335122,28.64,153.28,153.21,16.6492388]
[1723237335330,28.64,153.26,153.21,0.8419388]
[1723237335542,28.64,153.24,153.21,0.8419388]
[1723237335745,1.57824562,153.23,153.21,0.8419388]
[1723237335931,35.1659,153.24,153.21,0.8419388]
[1723237336331,6.5265,153.22,153.21,0.8419388]
[1723237336529,6.77718,153.23,153.21,0.8419388]
[1723237337234,6.5265,153.22,153.21,0.8419388]
[1723237337751,6.77718,153.23,153.21,0.8419388]
[1723237339851,6.5258,153.24,153.21,0.8419388]
[1723237340852,6.5252,153.25,153.21,0.8419388]
[1723237341858,6.5257,153.24,153.21,0.8419388]
[1723237342044,6.5261,153.23,153.21,0.8419388]
[1723237342448,36.87023562,153.22,153.21,0.8419388]
[1723237342643,37.12121562,153.22,153.21,0.8419388]
[1723237343653,35.54297,153.22,153.21,0.8419388]
[1723237344461,6.90297,153.22,153.21,0.8419388]
[1723237345338,0.12549,153.22,153.21,0.8419388]
[1723237345540,0.37647,153.23,153.21,0.8419388]
[1723237345944,28.64,153.29,153.21,0.8419388]
[1723237346274,6.5243,153.28,153.23,6.5258]
[1723237346439,6.5243,153.28,153.24,6.5256]
[1723237346635,28.64,153.29,153.24,6.5256]
[1723237346636,6.5236,153.29,153.24,6.5256]
[1723237347037,6.5241,153.28,153.24,6.5256]
[1723237347673,6.5245,153.27,153.22,6.5261]
[1723237347965,6.5248,153.26,153.21,23.1359388]
[1723237348146,0.12549,153.26,153.21,16.6093388]
[1723237348354,6.5262,153.23,153.21,16.6093388]
[1723237348566,6.5262,153.23,153.21,0.8419388]
[1723237348567,6.65199,153.22,153.21,0.8419388]
[1723237348773,6.90297,153.22,153.21,0.8419388]
[1723237350375,6.5262,153.23,153.21,0.8419388]
[1723237350966,6.5265,153.22,153.21,0.8419388]
[1723237351361,6.90297,153.22,153.21,0.8419388]
[1723237351546,7.02846,153.22,153.21,0.8419388]
[1723237351741,6.65199,153.22,153.21,0.8419388]
[1723237352964,6.5265,153.22,153.21,0.8419388]
[1723237354268,6.90297,153.22,153.21,0.8419388]
[1723237354474,7.02846,153.22,153.21,0.8419388]
[1723237356155,6.90297,153.22,153.21,0.8419388]
[1723237363158,6.5261,153.24,153.21,0.8419388]
[1723237363354,6.5254,153.25,153.21,0.8419388]
[1723237364354,16.3094,153.29,153.21,7.3685388]
[1723237364565,6.5257,153.24,153.21,0.8419388]
[1723237364873,28.64,153.27,153.21,0.8419388]
[1723237364874,6.5265,153.22,153.21,0.8419388]
[1723237367770,6.77748,153.22,153.21,0.8419388]
[1723237368081,0.12549,153.22,153.21,0.8419388]
[1723237368291,0.25098,153.23,153.21,0.8419388]
[1723237369383,0.12549,153.22,153.21,0.8419388]
[1723237370254,8.35572562,153.22,153.21,0.8419388]
[1723237370456,6.90297,153.22,153.21,0.8419388]
[1723237370653,0.37647,153.22,153.21,0.8419388]
[1723237371383,6.5262,153.23,153.21,0.8419388]
[1723237372367,6.65199,153.22,153.21,0.8419388]
[1723237372761,6.5265,153.22,153.21,0.8419388]
[1723237373081,31.17153861,153.25,153.21,0.8419388]
[1723237373264,28.64,153.25,153.21,0.8419388]
[1723237373461,6.5264,153.23,153.21,0.8419388]
[1723237373664,6.5265,153.22,153.21,0.8419388]
[1723237374375,6.5261,153.23,153.21,0.8419388]
[1723237374683,0.12549,153.26,153.21,0.8419388]
[1723237374886,0.50196,153.26,153.21,0.8419388]
[1723237375095,6.5253,153.25,153.21,0.8419388]
[1723237375389,6.5257,153.24,153.21,0.8419388]
[1723237376060,6.5265,153.22,153.21,0.8419388]
[1723237376266,8.10474562,153.22,153.21,0.8419388]
[1723237377687,6.0265,153.22,153.21,0.8419388]
[1723237377868,6.5256,153.25,153.21,7.3688388]
[1723237378185,6.5253,153.25,153.21,7.3685388]
[1723237378891,6.5253,153.25,153.21,0.8419388]
[1723237379461,1.13621021,153.3,153.22,16.44396411]
[1723237379692,6.5228,153.31,153.26,6.5248]